bitfinex/quotes_ETHUSD_20250426
["timestamp","ask_amount","ask_price","bid_price","bid_amount"]
[1745699039318,14.63028705,1811.5,1811.4,0.60982693]
[1745699042107,16.80292624,1811.5,1811.4,0.60982693]
[1745699042427,16.80292624,1811.5,1811.4,0.4098601]
[1745699042735,16.80292624,1811.5,1811.4,0.61070935]
[1745699043655,14.63028705,1811.5,1811.4,0.61070935]
[1745699045796,14.63028705,1811.5,1811.4,0.4098601]
[1745699052440,15.44488705,1811.5,1811.4,0.4098601]
[1745699053310,5.52211607,1810.9,1810.8,0.8026]
[1745699053535,5.52211607,1810.9,1810.8,1.00441123]
[1745699057418,5.52211607,1810.9,1810.8,0.20181123]
[1745699058129,11.63211607,1810.9,1810.8,0.20181123]
[1745699058855,6.11,1810.9,1810.8,0.20181123]
[1745699059156,6.11,1810.9,1810.7,0.8026]
[1745699059462,6.11,1810.9,1810.8,0.20347302]
[1745699063966,11.63181229,1811.0,1810.8,0.20347302]
[1745699064941,6.11,1811.0,1810.8,0.20347302]
[1745699065151,6.11,1811.0,1810.9,0.7693]
[1745699065350,6.11,1811.0,1810.9,0.97275113]
[1745699069763,5.52157688,1811.1,1810.9,0.97275113]
[1745699072375,5.52333609,1810.5,1810.4,0.28192508]
[1745699072583,6.28006364,1810.5,1810.4,0.28192508]
[1745699073150,5.52333609,1810.5,1810.4,0.28192508]
[1745699073350,5.52333609,1810.5,1810.2,0.7793]
[1745699075087,11.04697468,1810.5,1810.2,0.7793]
[1745699075290,5.52333609,1810.5,1810.2,0.7793]
[1745699076329,5.52387298,1810.4,1810.2,0.7793]
[1745699076592,6.5460359,1810.5,1810.2,0.7793]
[1745699076779,5.5236564,1810.4,1810.2,0.7793]
[1745699077491,6.11,1810.4,1810.2,0.7793]
[1745699079490,11.63381655,1810.4,1810.2,0.7793]
[1745699079989,11.63381655,1810.4,1810.3,0.15616291]
[1745699080525,6.11,1810.4,1810.3,0.15616291]
[1745699081528,11.63357426,1810.5,1810.3,0.15616291]
[1745699081818,6.11,1810.5,1810.3,0.15616291]
[1745699081981,11.63346606,1810.5,1810.3,0.15616291]
[1745699084828,6.11,1810.5,1810.3,0.15616291]
[1745699085625,11.63336617,1810.5,1810.3,0.15616291]
[1745699093135,6.11,1810.5,1810.3,0.15616291]
[1745699093336,6.11,1810.6,1810.3,0.15616291]
[1745699093925,11.63306823,1810.6,1810.3,0.15616291]
[1745699094635,6.11,1810.6,1810.3,0.15616291]
[1745699094839,11.63307969,1810.6,1810.3,0.15616291]
[1745699099942,6.11,1810.6,1810.3,0.15616291]
[1745699100748,11.63309562,1810.6,1810.3,0.15616291]
[1745699102551,6.11,1810.9,1810.4,0.7949]
[1745699102754,11.63225399,1810.9,1810.5,0.15834869]
[1745699103053,6.96542291,1810.6,1810.5,0.15834869]
[1745699103357,7.72532291,1810.6,1810.2,0.7949]
[1745699103553,7.72532291,1810.6,1810.3,0.15725149]
[1745699104466,1.44239188,1810.4,1810.3,0.15725149]
[1745699104644,15.39354118,1810.4,1810.3,0.15725149]
[1745699104844,5.52471307,1810.1,1809.8,0.7949]
[1745699105033,5.5251026,1810.0,1809.9,0.15806519]
[1745699105238,6.96709602,1810.1,1809.8,0.7949]
[1745699105539,6.96709602,1810.1,1809.9,0.14499729]
[1745699105851,13.07686151,1810.2,1809.9,0.04499729]
[1745699106161,14.4603161,1810.2,1809.8,0.7949]
[1745699106398,14.4603161,1810.2,1809.9,0.13666396]
[1745699106659,14.4603161,1810.2,1809.8,0.7949]
[1745699106846,14.4603161,1810.2,1810.0,0.13664204]
[1745699107052,14.4603161,1810.2,1809.8,0.7949]
[1745699107363,14.4603161,1810.2,1809.9,0.13666396]
[1745699107518,1.44603161,1810.1,1809.8,0.7949]
[1745699107846,5.5253559,1809.9,1809.6,0.4098601]
[1745699108962,7.04291593,1810.0,1809.6,0.4098601]
[1745699109264,5.52516789,1809.9,1809.6,0.4098601]
[1745699109665,5.52540696,1809.9,1809.6,0.4098601]
[1745699110778,7.04285506,1810.0,1809.6,5.93592836]
[1745699110779,0.7599,1810.0,1809.6,5.93592836]
[1745699110978,6.11,1810.0,1809.7,6.94787977]
[1745699111767,6.11,1810.2,1809.9,0.8287]
[1745699112850,6.11,1810.2,1809.9,6.35375115]
[1745699113183,6.11,1810.2,1809.9,0.8287]
[1745699113474,6.11,1810.2,1810.0,0.13892469]
[1745699115680,7.2734053,1810.2,1810.0,0.13892469]
[1745699115885,6.11,1810.2,1810.0,0.13892469]
[1745699116682,11.63397147,1810.3,1810.0,0.13892469]
[1745699117801,6.11,1810.3,1810.0,0.13892469]
[1745699118192,11.63405858,1810.3,1810.0,0.13892469]
[1745699118683,6.11,1810.3,1810.0,0.13892469]
[1745699119706,7.74298152,1810.3,1810.0,0.13892469]
[1745699121703,13.26692896,1810.3,1810.0,0.13892469]
[1745699123466,7.74298152,1810.3,1810.0,0.13892469]
[1745699124010,13.26695782,1810.3,1810.0,0.13892469]
[1745699124610,7.74298152,1810.3,1810.0,0.13892469]
[1745699124819,6.11,1810.3,1810.0,0.13892469]
[1745699125017,6.11,1810.3,1810.0,5.6637309]
[1745699125225,12.35134809,1810.7,1810.1,6.28502703]
[1745699125371,12.35134809,1810.7,1810.3,5.52371595]
[1745699125576,5.52305276,1810.6,1810.4,0.14044506]
[1745699125777,5.52305276,1810.6,1810.1,6.28490219]
[1745699125991,5.52305276,1810.6,1810.2,0.14048887]
[1745699126196,5.52305276,1810.6,1810.1,6.284874]
[1745699126475,5.52305276,1810.6,1810.2,0.76897627]
[1745699126793,5.52305276,1810.6,1810.2,0.14048887]
[1745699126990,5.52305276,1810.6,1810.1,6.284874]
[1745699127195,5.52305276,1810.6,1810.2,0.14048887]
[1745699127410,5.52305276,1810.6,1810.1,6.284874]
[1745699127611,5.52305276,1810.6,1810.2,0.14048887]
[1745699127811,5.52305276,1810.6,1810.1,6.284874]
[1745699127998,5.52305276,1810.6,1810.2,0.14048887]
[1745699128169,5.52334604,1810.5,1810.1,7.46583318]
[1745699128377,6.11,1810.5,1810.2,0.14048887]
[1745699128606,6.11,1810.5,1810.1,7.46581529]
[1745699128942,6.11,1810.5,1810.2,5.66473594]
[1745699129286,6.11,1810.5,1810.2,6.97779106]
[1745699129480,6.11,1810.5,1810.2,5.66473594]
[1745699135130,6.11,1810.5,1810.2,5.66471365]
[1745699136725,6.11,1810.5,1810.2,5.66452913]
[1745699136894,6.11,1810.5,1810.3,5.52391611]
[1745699137094,6.11,1810.5,1810.2,5.66456203]
[1745699137331,6.11,1810.5,1810.4,0.13919998]
[1745699137494,6.11,1810.5,1810.3,5.66316755]
[1745699137694,6.11,1810.5,1810.4,0.13919998]
[1745699138103,6.11,1810.5,1810.3,5.52394567]
[1745699138332,6.11,1810.5,1810.4,0.13919998]
[1745699138635,6.11,1810.5,1810.3,5.52394567]
[1745699138823,6.11,1810.5,1810.4,0.13919998]
[1745699139026,6.11,1810.5,1810.3,6.35474567]
[1745699139210,6.11,1810.5,1810.4,0.13919998]
[1745699139413,6.11,1810.5,1810.3,6.35474567]
[1745699139627,6.11,1810.5,1810.4,0.13919998]
[1745699139807,6.11,1810.5,1810.3,6.35474567]
[1745699140011,6.11,1810.5,1810.4,0.13919998]
[1745699140211,6.11,1810.6,1810.3,6.35474567]
[1745699140413,6.11,1810.6,1810.4,0.13919998]
[1745699140721,6.11,1810.6,1810.3,1.80674714]
[1745699140939,6.11,1810.6,1810.2,5.52417147]
[1745699140940,6.11,1810.6,1810.5,0.13917808]
[1745699141126,18.70218971,1810.7,1810.4,0.13919998]
[1745699141439,18.70218971,1810.7,1810.5,0.13917808]
[1745699141646,1.44258415,1810.6,1810.2,6.32617147]
[1745699141804,1.44258415,1810.6,1810.3,0.13922188]
[1745699145543,6.96562537,1810.6,1810.3,0.13922188]
[1745699145848,1.44258415,1810.6,1810.3,0.13922188]
[1745699146439,1.44258415,1810.6,1810.3,5.66316714]
[1745699147209,6.8984,1810.7,1810.4,5.57875447]
[1745699147453,6.8984,1810.7,1810.5,0.13933366]
[1745699147603,6.8984,1810.7,1810.3,6.72266726]
[1745699147814,13.86381175,1810.7,1810.4,0.13790299]
[1745699148111,13.86381175,1810.7,1810.3,6.72266726]
[1745699148312,13.86381175,1810.7,1810.5,0.13788109]
[1745699148547,13.86381175,1810.7,1810.4,0.13790299]
[1745699148759,13.86381175,1810.7,1810.6,0.13785919]
[1745699149271,13.86381175,1810.7,1810.3,5.52374831]
[1745699149430,13.86381175,1810.7,1810.4,0.13790299]
[1745699149630,5.52315312,1810.6,1810.2,0.802]
[1745699149830,5.52315312,1810.6,1810.3,0.13792489]
[1745699150874,13.86392876,1810.7,1810.3,0.13792489]
[1745699151955,19.38695213,1810.7,1810.3,0.13792489]
[1745699152156,13.86392876,1810.7,1810.3,0.13792489]
[1745699152450,5.52308875,1810.6,1810.3,0.13792489]
[1745699157589,13.86384334,1810.7,1810.3,5.66186983]
[1745699158593,13.86384334,1810.7,1810.3,0.13792489]
[1745699160384,16.10248622,1810.7,1810.3,0.13792489]
[1745699161792,5.52314496,1810.6,1810.3,0.13792489]
[1745699163587,16.10254689,1810.7,1810.3,0.13792489]
[1745699164391,5.52304578,1810.6,1810.3,0.13792489]
[1745699168522,5.52333701,1810.5,1810.3,0.13792489]
[1745699168689,5.52324519,1810.6,1810.3,0.13792489]
[1745699169011,0.55232452,1810.5,1810.3,0.13792489]
[1745699169194,5.52324519,1810.6,1810.3,0.13792489]
[1745699169507,6.11,1810.5,1810.3,0.13792489]
[1745699175419,11.6330512,1810.6,1810.3,0.13792489]
[1745699179135,6.11,1810.6,1810.3,0.13792489]
[1745699179901,11.63307077,1810.6,1810.3,0.13792489]
[1745699180102,1.16330708,1810.5,1810.3,0.13792489]
[1745699180637,11.63307077,1810.6,1810.3,0.13792489]
[1745699184635,6.33664503,1810.5,1810.3,0.13792489]
[1745699184801,7.77922918,1810.5,1810.0,16.55334646]
[1745699185131,2.25578415,1810.5,1810.1,5.66201921]
[1745699185432,7.77913011,1810.5,1810.1,5.66201921]
[1745699185632,2.25578415,1810.5,1810.1,5.66201921]
[1745699185836,2.25578415,1810.5,1810.1,7.33108767]
[1745699190341,0.8132,1810.5,1810.2,5.52423113]
[1745699190546,11.63320924,1810.6,1810.2,0.7784]
[1745699190843,6.11,1810.6,1810.3,0.13745811]
[1745699191142,11.63304351,1810.6,1810.3,0.13745811]
[1745699193742,6.11,1810.6,1810.3,0.13745811]
[1745699195649,11.63305061,1810.6,1810.3,0.13745811]
[1745699195851,6.11,1810.6,1810.3,0.13745811]
[1745699198948,6.11,1810.6,1810.4,5.52357798]
[1745699199125,6.9057,1810.7,1810.4,5.52357798]
[1745699199325,6.9057,1810.7,1810.3,6.30520598]
[1745699199527,6.9057,1810.7,1810.5,0.13736241]
[1745699199727,6.9057,1810.7,1810.4,0.13738431]
[1745699199927,6.9057,1810.7,1810.6,0.13734051]
[1745699200124,1.44258415,1811.0,1810.5,5.66040679]
[1745699200125,15.45665407,1811.0,1810.5,5.66040679]
[1745699200444,13.89923822,1811.0,1810.6,0.70338119]
[1745699200643,13.89923822,1811.0,1810.6,0.13734051]
[1745699201348,8.37728415,1811.0,1810.7,0.7953]
[1745699201515,6.9347,1811.0,1810.7,0.7953]
[1745699201717,6.9347,1811.0,1810.8,0.13548006]
[1745699202624,7.78940022,1810.9,1810.8,0.13548006]
[1745699202822,5.52278322,1810.7,1810.3,11.00911477]
[1745699203024,7.79042741,1810.6,1810.4,0.13556765]
[1745699203248,13.90042741,1810.6,1810.2,4.69]
[1745699203447,5.52349606,1810.5,1810.2,4.69]
[1745699203622,5.52349606,1810.5,1810.3,0.13434482]
[1745699203833,6.96608021,1810.5,1810.3,0.13434482]
[1745699204663,5.52349606,1810.5,1810.3,0.13434482]
[1745699206366,5.52364118,1810.4,1810.3,0.13434482]
[1745699206538,7.74562533,1810.4,1810.3,0.13434482]
[1745699206866,5.5247351,1810.1,1809.7,5.4971]
[1745699207168,13.07731925,1810.1,1809.7,5.4971]
[1745699207324,13.07731925,1810.1,1809.7,11.02285897]
[1745699207529,13.07731925,1810.1,1809.7,12.71872194]
[1745699208061,13.07731925,1810.1,1809.7,7.19296297]
[1745699208263,13.85671925,1810.1,1809.7,2.50496297]
[1745699208426,13.85671925,1810.1,1809.7,0.8091]
[1745699209868,12.4141351,1810.1,1809.7,0.8091]
[1745699210164,5.52489983,1810.0,1809.7,0.8091]
[1745699210765,12.41413793,1810.1,1809.7,6.33484418]
[1745699210968,12.41413793,1810.1,1809.7,0.8091]
[1745699211267,12.41413793,1810.1,1809.7,1.48358643]
[1745699214072,12.41413793,1810.1,1809.7,7.00931783]
[1745699214427,12.41413793,1810.1,1809.7,1.48358643]
[1745699214834,12.41419828,1810.1,1809.7,1.48358643]
[1745699215033,5.52498895,1810.0,1809.7,1.48358643]
[1745699215676,5.52498895,1810.0,1809.7,0.8091]
[1745699217068,12.4139663,1810.1,1809.7,0.8091]
[1745699217270,6.8894,1810.1,1809.7,0.8091]
[1745699217472,5.52487112,1810.0,1809.7,0.8091]
[1745699217780,12.41409729,1810.1,1809.7,0.8091]
[1745699217979,11.6345704,1810.1,1809.7,6.3347034]
[1745699218180,6.11,1810.1,1809.8,5.64127575]
[1745699218397,6.11,1810.1,1809.9,0.7885]
[1745699218544,6.11,1810.1,1809.9,6.31353389]
[1745699218746,6.11,1810.1,1810.0,0.11596272]
[1745699219246,6.11,1810.1,1810.0,0.75890602]
[1745699219478,11.63375852,1810.4,1810.0,0.75890602]
[1745699223407,6.11,1810.4,1810.1,0.7885]
[1745699223695,14.63342731,1810.5,1810.1,0.7885]
[1745699223880,5.52364768,1810.4,1810.2,0.11866526]
[1745699224192,5.52364768,1810.4,1810.1,0.7885]
[1745699224392,14.63346189,1810.5,1810.3,0.11864336]
[1745699224561,14.63346189,1810.5,1810.2,0.11866526]
[1745699224766,11.63346189,1810.5,1810.4,0.11862145]
[1745699224983,11.63346189,1810.5,1810.3,0.11864336]
[1745699225183,11.63346189,1810.5,1810.4,0.11862145]
[1745699225793,11.63346189,1810.5,1810.1,0.7885]
[1745699225992,11.63346189,1810.5,1810.4,0.11862145]
[1745699226632,11.63346189,1810.5,1810.1,0.7885]
[1745699226780,11.63346189,1810.5,1810.4,0.11862145]
[1745699227190,11.63346189,1810.5,1810.1,0.7885]
[1745699227390,11.63346189,1810.5,1810.4,0.11862145]
[1745699227572,13.34912531,1810.5,1810.1,0.7885]
[1745699227776,11.63346189,1810.5,1810.4,0.11862145]
[1745699227981,11.63346189,1810.5,1810.1,0.7885]
[1745699228289,11.63346189,1810.5,1810.4,0.11862145]
[1745699228694,11.63346189,1810.5,1810.1,0.7885]
[1745699228895,11.63346189,1810.5,1810.4,0.11862145]
[1745699229053,13.34912531,1810.5,1810.1,0.7885]
[1745699229252,11.63346189,1810.5,1810.4,0.11862145]
[1745699229490,11.63346189,1810.5,1810.1,0.7885]
[1745699229802,6.11,1810.5,1810.4,0.11862145]
[1745699229993,6.11,1810.5,1810.2,5.52419776]
[1745699230198,6.11,1810.5,1810.4,0.11862145]
[1745699230399,6.11,1810.5,1810.3,0.94864336]
[1745699230563,6.11,1810.5,1810.4,0.11862145]
[1745699230769,6.11,1810.6,1810.3,0.83]
[1745699230983,6.11,1810.6,1810.4,0.11862145]
[1745699231372,6.11,1810.6,1810.3,6.35392685]
[1745699231588,6.11,1810.6,1810.5,0.11859955]
[1745699231755,6.11,1810.6,1810.4,0.11862145]
[1745699231955,6.11,1810.6,1810.3,0.83]
[1745699232257,6.11,1810.6,1810.4,0.11737779]
[1745699232768,6.11,1810.6,1810.5,0.11735589]
[1745699232970,6.11,1810.6,1810.3,0.83]
[1745699233178,6.11,1810.6,1810.4,0.11737779]
[1745699233687,6.11,1810.6,1810.3,6.35393863]
[1745699233910,6.11,1810.6,1810.5,0.11735589]
[1745699234512,6.11,1810.6,1810.3,6.35393863]
[1745699234708,6.11,1810.6,1810.4,0.11737779]
[1745699234909,6.11,1810.6,1810.3,6.35393863]
[1745699235109,6.11,1810.6,1810.4,0.11737779]
[1745699235543,6.11,1810.6,1810.3,6.35393863]
[1745699235746,6.11,1810.6,1810.4,0.11737779]
[1745699235947,6.11,1810.6,1810.3,6.35393863]
[1745699236112,6.11,1810.6,1810.4,0.11737779]
[1745699236625,6.11,1810.6,1810.5,0.11735589]
[1745699236931,6.11,1810.6,1810.3,0.83]
[1745699237246,6.11,1810.6,1810.4,0.11737779]
[1745699237746,13.07545652,1810.6,1810.5,0.11735589]
[1745699237945,13.07545652,1810.6,1810.3,0.83]
[1745699238154,13.07545652,1810.6,1810.4,0.11737779]
[1745699238452,13.07545652,1810.6,1810.3,0.83]
[1745699238743,13.07545652,1810.6,1810.4,0.11737779]
[1745699238950,13.07545652,1810.6,1810.3,0.83]
[1745699239154,13.07545652,1810.6,1810.4,0.11737779]
[1745699239365,13.07545652,1810.6,1810.3,0.83]
[1745699239565,13.07545652,1810.6,1810.4,0.11737779]
[1745699239716,13.07545652,1810.6,1810.3,0.83]
[1745699239917,13.07545652,1810.6,1810.4,0.11737779]
[1745699240113,13.07545652,1810.6,1810.3,0.83]
[1745699240347,13.07545652,1810.6,1810.4,0.11737779]
[1745699240561,15.3155074,1810.6,1810.3,0.83]
[1745699240729,15.3155074,1810.6,1810.4,0.11737779]
[1745699240933,15.3155074,1810.6,1810.3,0.83]
[1745699241136,15.3155074,1810.6,1810.4,0.11737779]
[1745699241459,15.3155074,1810.6,1810.3,0.83]
[1745699241697,15.3155074,1810.6,1810.5,0.11735589]
[1745699241823,15.3155074,1810.6,1810.4,0.11737779]
[1745699242022,9.79244686,1810.6,1810.5,0.11735589]
[1745699242425,9.79244686,1810.6,1810.3,0.83]
[1745699242637,7.55239598,1810.6,1810.5,0.11735589]
[1745699242834,7.55239598,1810.6,1810.4,0.11737779]
[1745699243055,7.55239598,1810.6,1810.5,0.11735589]
[1745699243378,7.55239598,1810.6,1810.3,6.35383955]
[1745699243566,7.55239598,1810.6,1810.4,0.11737779]
[1745699243769,6.11,1810.6,1810.3,6.35383955]
[1745699243943,6.11,1810.6,1810.4,0.11737779]
[1745699244145,6.11,1810.6,1810.3,6.35383955]
[1745699244339,6.11,1810.6,1810.4,0.11737779]
[1745699244539,6.11,1810.6,1810.3,6.35383955]
[1745699244736,6.11,1810.6,1810.4,0.11737779]
[1745699244941,13.02082165,1810.6,1810.3,0.83]
[1745699245180,13.02082165,1810.6,1810.4,0.11737779]
[1745699245344,13.02082165,1810.6,1810.3,0.83]
[1745699245682,13.02082165,1810.6,1810.4,0.11737779]
[1745699246069,13.02082165,1810.6,1810.3,0.83]
[1745699246379,13.02082165,1810.6,1810.4,0.11737779]
[1745699246551,7.49776104,1810.6,1810.3,0.83]
[1745699246753,6.11,1810.6,1810.4,0.11737779]
[1745699246952,6.11,1810.6,1810.3,0.83]
[1745699247167,6.11,1810.6,1810.4,0.11701512]
[1745699247366,6.11,1810.6,1810.3,0.83]
[1745699247574,6.11,1810.6,1810.4,0.11701512]
[1745699247756,8.05005859,1810.6,1810.3,0.83]
[1745699247955,8.05005859,1810.6,1810.4,0.11701512]
[1745699248157,8.05005859,1810.6,1810.3,0.83]
[1745699248370,6.11,1810.6,1810.4,0.11701512]
[1745699248576,6.11,1810.6,1810.3,0.83]
[1745699248740,6.11,1810.6,1810.4,0.11701512]
[1745699248941,6.11,1810.6,1810.3,0.83]
[1745699250080,6.11,1810.6,1810.4,0.11701512]
[1745699250282,8.05005859,1810.6,1810.4,0.11701512]
[1745699250449,8.05005859,1810.6,1810.3,0.83]
[1745699250783,8.05005859,1810.6,1810.4,0.11701512]
[1745699251078,8.05005859,1810.6,1810.3,0.83]
[1745699251279,8.05005859,1810.6,1810.5,0.11699322]
[1745699251482,3.8123,1810.5,1810.4,0.11701512]
[1745699251670,5.52440052,1810.2,1809.7,10.9850653]
[1745699251852,5.52483414,1810.1,1809.7,0.7734]
[1745699252061,1.44239598,1810.2,1809.8,5.52527572]
[1745699252258,1.44239598,1810.2,1809.9,0.55252757]
[1745699253085,13.07648692,1810.3,1809.9,0.55252757]
[1745699256465,5.52426523,1810.2,1809.8,5.52527572]
[1745699257977,5.52426523,1810.2,1809.7,6.29899109]
[1745699258161,5.52426523,1810.2,1809.7,11.82458336]
[1745699258489,7.76497858,1810.1,1809.7,0.7734]
[1745699259089,7.76497858,1810.1,1809.8,0.11771669]
[1745699260975,6.3225826,1810.1,1809.8,0.11771669]
[1745699262493,5.52487789,1810.0,1809.8,0.11771669]
[1745699262701,6.3225826,1810.1,1809.8,0.11771669]
[1745699263470,12.4325826,1810.1,1809.8,0.11771669]
[1745699266009,6.11,1810.1,1809.8,0.11771669]
[1745699266218,6.11,1810.1,1809.8,0.75939317]
[1745699266973,11.63456022,1810.1,1809.8,0.75939317]
[1745699269336,11.63456022,1810.1,1809.8,0.11771669]
[1745699269834,6.11,1810.1,1809.8,0.11771669]
[1745699270033,6.11,1810.1,1810.0,6.28966187]
[1745699270231,6.11,1810.4,1810.0,6.28966187]
[1745699270403,6.11,1810.4,1810.0,6.41018507]
[1745699270745,6.11,1810.4,1810.0,7.60370608]
[1745699270916,11.63370898,1810.4,1810.0,7.60370608]
[1745699271238,13.07610496,1810.4,1810.0,2.07884421]
[1745699272238,5.52394771,1810.3,1810.0,2.07884421]
[1745699274436,5.52394771,1810.3,1810.0,0.8853232]
[1745699274731,5.5239463,1810.3,1810.0,0.1205232]
[1745699275102,11.6339463,1810.3,1810.0,0.1205232]
[1745699276251,0.8266,1810.1,1810.0,0.1205232]
[1745699276438,6.35115665,1810.1,1810.0,0.1205232]
[1745699276635,7.68294094,1810.1,1809.6,5.93581997]
[1745699276949,5.5249981,1810.0,1809.6,5.93581997]
[1745699278245,5.5249981,1810.0,1809.7,0.11950049]
[1745699278652,5.5249981,1810.0,1809.6,5.93581997]
[1745699278876,5.5249981,1810.0,1809.8,0.11947857]
[1745699279019,5.5249981,1810.0,1809.7,0.11950049]
[1745699279219,5.5249981,1810.0,1809.9,0.11945665]
[1745699279446,5.5249981,1810.0,1809.8,0.11947857]
[1745699279646,6.3513427,1810.1,1809.9,0.11945665]
[1745699279850,7.61469175,1810.1,1809.9,0.11945665]
[1745699280017,7.61469175,1810.1,1809.6,5.93581997]
[1745699280217,6.3513427,1810.1,1810.0,0.11943474]
[1745699280855,6.28205649,1810.2,1809.7,6.33128078]
[1745699281030,6.11,1810.1,1810.0,0.11964207]
[1745699281352,11.63456353,1810.1,1810.0,0.11964207]
[1745699281553,6.11,1810.1,1809.7,11.85668012]
[1745699281760,6.11,1810.1,1809.8,1.30623503]
[1745699282255,11.63470475,1810.1,1809.8,0.12056702]
[1745699283130,12.39240475,1810.1,1809.8,0.12056702]
[1745699285655,5.52498422,1810.0,1809.8,0.12056702]
[1745699288981,12.39239805,1810.1,1809.8,0.12056702]
[1745699293489,6.8677,1810.1,1809.8,0.12056702]
[1745699293693,0.68677,1810.0,1809.8,0.12056702]
[1745699293903,5.52501167,1810.0,1809.8,0.12056702]
[1745699298622,11.63501167,1810.0,1809.8,0.12056702]
[1745699299931,6.11,1810.0,1809.8,0.12056702]
[1745699300416,11.63504593,1810.0,1809.8,0.12056702]
[1745699300996,11.63504593,1810.0,1809.6,6.76143417]
[1745699301210,11.63504593,1810.0,1809.7,0.12043344]
[1745699301404,11.63504593,1810.0,1809.6,7.90607759]
[1745699301595,11.63504593,1810.0,1809.7,0.12043344]
[1745699301917,11.63504593,1810.0,1809.6,7.90607759]
[1745699302220,11.63504593,1810.0,1809.7,0.12100362]
[1745699302422,11.63504593,1810.0,1809.6,7.90607759]
[1745699302646,11.63504593,1810.0,1809.7,0.12100362]
[1745699303121,11.63504593,1810.0,1809.6,7.90607759]
[1745699303285,11.63504593,1810.0,1809.8,0.1209817]
[1745699303485,11.63504593,1810.0,1809.7,0.12100362]
[1745699303920,11.63504593,1810.0,1809.6,6.76143417]
[1745699304115,11.63504593,1810.0,1809.8,0.1209817]
[1745699304320,11.63504593,1810.0,1809.7,0.12100362]
[1745699304520,11.63504593,1810.0,1809.9,0.12095979]
[1745699304698,11.63504593,1810.0,1809.8,0.1209817]
[1745699304899,11.63504593,1810.0,1809.9,0.12095979]
[1745699305227,11.63504593,1810.0,1809.6,6.76143417]
[1745699305427,11.63504593,1810.0,1809.7,0.12100362]
[1745699305659,11.63504593,1810.0,1809.6,8.45871547]
[1745699305821,11.63504593,1810.0,1809.8,0.1209817]
[1745699306019,11.63504593,1810.0,1809.6,6.76143417]
[1745699306223,11.63504593,1810.0,1809.7,0.12100362]
[1745699306735,11.63504593,1810.0,1809.6,6.76143417]
[1745699307044,11.63504593,1810.0,1809.7,0.12100362]
[1745699307442,11.63504593,1810.0,1809.6,8.45871547]
[1745699307758,11.63504593,1810.0,1809.8,0.1209817]
[1745699308145,11.63504593,1810.0,1809.6,6.76143417]
[1745699308341,11.63504593,1810.0,1809.9,0.12095979]
[1745699308657,13.01865574,1810.0,1809.9,0.12095979]
[1745699308823,13.01865574,1810.0,1809.6,6.76143417]
[1745699309024,11.63504593,1810.0,1809.7,0.12100362]
[1745699309238,11.63504593,1810.0,1809.6,6.76143417]
[1745699309553,11.63504593,1810.0,1809.8,0.1209817]
[1745699309752,11.63504593,1810.0,1809.7,0.12100362]
[1745699309957,11.63504593,1810.0,1809.9,0.12095979]
[1745699310156,13.57111321,1810.0,1809.8,0.1209817]
[1745699310333,11.63504593,1810.0,1809.9,0.12095979]
[1745699310657,11.63504593,1810.0,1809.6,6.76143417]
[1745699310824,11.63504593,1810.0,1809.9,0.12095979]
[1745699311023,11.63504593,1810.0,1809.6,6.76143417]
[1745699311223,11.63504593,1810.0,1809.7,0.12100362]
[1745699311422,11.63504593,1810.0,1809.6,6.76143417]
[1745699311639,11.63504593,1810.0,1809.7,0.12100362]
[1745699312021,11.63504593,1810.0,1809.6,8.45871375]
[1745699312223,11.63504593,1810.0,1809.7,0.12105545]
[1745699312422,11.63504593,1810.0,1809.6,8.45871375]
[1745699312618,11.63504593,1810.0,1809.7,0.12105545]
[1745699312823,11.63504593,1810.0,1809.6,8.45871375]
[1745699313036,11.63504593,1810.0,1809.7,0.12105545]
[1745699313257,11.63504593,1810.0,1809.6,8.45871375]
[1745699313462,11.63504593,1810.0,1809.8,0.12103354]
[1745699313661,11.63504593,1810.0,1809.7,0.12105545]
[1745699313866,11.63504593,1810.0,1809.9,0.12101162]
[1745699314039,11.63504593,1810.0,1809.8,0.12103354]
[1745699314243,11.63504593,1810.0,1809.9,0.12101162]
[1745699314669,11.63504593,1810.0,1809.6,6.76143417]
[1745699314839,11.63504593,1810.0,1809.9,0.12101162]
[1745699315039,11.63504593,1810.0,1809.6,6.76143417]
[1745699315241,11.63504593,1810.0,1809.9,0.12101162]
[1745699315440,11.63504593,1810.0,1809.6,6.76143417]
[1745699315643,11.63504593,1810.0,1809.9,0.12101162]
[1745699315952,13.57111321,1810.0,1809.6,6.76143417]
[1745699316163,11.63504593,1810.0,1809.9,0.12101162]
[1745699316345,6.32519498,1809.9,1809.6,0.4098601]
[1745699316547,5.52577775,1809.7,1809.6,0.4098601]
[1745699316845,6.96912994,1809.7,1809.6,0.4098601]
[1745699317042,7.76892994,1809.7,1809.6,0.4098601]
[1745699318061,2.24315219,1809.7,1809.6,0.4098601]
[1745699318249,2.76096209,1809.7,1809.6,0.4098601]
[1745699318838,1.96116209,1809.7,1809.6,0.4098601]
[1745699319043,0.5178099,1809.7,1809.6,0.4098601]
[1745699319467,7.7688229,1809.8,1809.6,0.4098601]
[1745699321065,9.709241,1809.8,1809.6,0.4098601]
[1745699321858,5.52577775,1809.7,1809.6,0.4098601]
[1745699322047,9.70923618,1809.8,1809.6,0.4098601]
[1745699323359,9.70923618,1809.8,1809.7,0.12115913]
[1745699323559,9.70923618,1809.8,1809.6,0.4098601]
[1745699323734,9.70923618,1809.8,1809.7,0.12115913]
[1745699324070,9.70923618,1809.8,1809.6,0.4098601]
[1745699324270,9.70923618,1809.8,1809.7,0.12115913]
[1745699324678,9.70923618,1809.8,1809.6,0.4098601]
[1745699324861,9.70923618,1809.8,1809.7,0.12115913]
[1745699325672,9.70923618,1809.8,1809.6,0.4098601]
[1745699325873,9.70923618,1809.8,1809.7,0.12115913]
[1745699326260,9.70923618,1809.8,1809.6,0.4098601]
[1745699326578,9.70923618,1809.8,1809.7,0.12115913]
[1745699326875,9.70923618,1809.8,1809.6,0.4098601]
[1745699327171,9.70923618,1809.8,1809.7,0.12188496]
[1745699327588,9.70923618,1809.8,1809.6,0.4098601]
[1745699327874,11.41248213,1809.7,1809.6,0.4098601]
[1745699328075,5.52734647,1809.2,1808.9,0.8181]
[1745699328286,2.24315219,1809.4,1808.9,0.8181]
[1745699328590,5.52711404,1809.3,1809.0,0.12373971]
[1745699328909,6.97046623,1809.3,1809.0,0.12373971]
[1745699329185,13.19540322,1809.2,1809.0,0.12373971]
[1745699329582,5.52761041,1809.1,1809.0,0.12373971]
[1745699329761,7.66789572,1809.2,1809.0,0.12373971]
[1745699329962,5.52761041,1809.1,1809.0,0.12373971]